fUST/lending_fUST_20251117
["ID","MTS","AMOUNT","RATE_DAILY","PERIOD"]
[394133257,1763311846479,-1632.99238801,0.00013955,2]
[394133267,1763311848319,-41538.30961839,0.00013955,2]
[394133268,1763311848331,-4961.44998068,0.00013955,2]
[394133269,1763312016702,-253.52607914,0.00012804,2]
[394133270,1763312016727,-1862.4802208,0.00013925,2]
[394133271,1763312016750,-300.0,0.00013953,2]
[394133272,1763312016772,-500.0,0.00013954,2]
[394133273,1763312016796,-500.0,0.00013954,2]
[394133274,1763312016821,-500.0,0.00013954,2]
[394133275,1763312016845,-500.0,0.00013954,2]
[394133276,1763312016869,-500.0,0.00013954,2]
[394133277,1763312016892,-500.0,0.00013954,2]
[394133278,1763312016916,-500.0,0.00013954,2]
[394133279,1763312016940,-500.0,0.00013954,2]
[394133280,1763312016962,-500.0,0.00013954,2]
[394133281,1763312016985,-500.0,0.00013954,2]
[394133282,1763312017009,-550.0,0.00013954,2]
[394133283,1763312017034,-500.0,0.00013954,2]
[394133284,1763312017059,-524.37464537,0.00013954,2]
[394133285,1763312017083,-500.0,0.00013954,2]
[394133286,1763312017108,-500.0,0.00013954,2]
[394133287,1763312017132,-298.83832339,0.00013954,2]
[394133288,1763312017159,-500.0,0.00013954,2]
[394133289,1763312017182,-500.0,0.00013954,2]
[394133290,1763312017207,-500.0,0.00013954,2]
[394133291,1763312017230,-1004.86308962,0.00013955,2]
[394133292,1763312017257,-647205.91764168,0.00013955,2]
[394133388,1763312674999,155.749108,0.0001764,3]
[394133400,1763312696465,-7548.8025176,0.00012994,2]
[394133401,1763312696488,-248.45555756,0.00013045,2]
[394133402,1763312696510,-274.4838701,0.00013096,2]
[394133403,1763312696533,-300.0,0.00013569,2]
[394133404,1763312696555,-3750.21259419,0.0001357,2]
[394133405,1763312696577,-2250.50954869,0.00013607,2]
[394133406,1763312696599,-7659.8115918,0.00013699,2]
[394133407,1763312696624,-450.0,0.00013869,2]
[394133408,1763312696647,-336.04162726,0.00013869,2]
[394133409,1763312696673,-500.0,0.00013869,2]
[394133410,1763312696698,-500.0,0.00013869,2]
[394133411,1763312696724,-500.0,0.00013869,2]
[394133412,1763312696749,-500.0,0.00013869,2]
[394133413,1763312696775,-500.0,0.00013869,2]
[394133414,1763312696801,-500.0,0.00013869,2]
[394133415,1763312696825,-500.0,0.00013869,2]
[394133416,1763312696850,-500.0,0.00013869,2]
[394133417,1763312696876,-500.0,0.00013869,2]
[394133418,1763312696900,-500.0,0.00013869,2]
[394133419,1763312696926,-500.0,0.00013869,2]
[394133420,1763312696950,-500.0,0.00013869,2]
[394133421,1763312696975,-500.0,0.00013869,2]
[394133422,1763312697000,-500.0,0.00013869,2]
[394133423,1763312697025,-329.14353864,0.00013869,2]
[394133424,1763312697050,-500.0,0.00013869,2]
[394133425,1763312697073,-500.0,0.00013869,2]
[394133426,1763312697097,-500.0,0.00013869,2]
[394133427,1763312697123,-500.0,0.00013869,2]
[394133428,1763312697150,-500.0,0.00013869,2]
[394133429,1763312697176,-500.0,0.00013869,2]
[394133430,1763312697200,-500.0,0.00013869,2]
[394133431,1763312697225,-8561.10048031,0.0001387,2]
[394133432,1763312697248,-426.23852909,0.00013871,2]
[394133433,1763312697274,-857365.20014476,0.00013872,2]
[394133434,1763312701184,-32634.79985524,0.00013872,2]
[394133435,1763312701205,-500.0,0.00013873,2]
[394133436,1763312701226,-500.0,0.00013873,2]
[394133437,1763312701248,-506.56378642,0.00013873,2]
[394133438,1763312701269,-500.0,0.00013873,2]
[394133439,1763312701296,-500.0,0.00013873,2]
[394133440,1763312701319,-500.0,0.00013873,2]
[394133530,1763313032185,-298.36697036,0.00013598,2]
[394133532,1763313032194,-500.0,0.00013598,2]
[394133534,1763313032203,-233.35137759,0.00013598,2]
[394133613,1763313038217,-266.64862241,0.00013598,2]
[394133615,1763313038227,-203.23817096,0.00013598,2]
[394133617,1763313038237,-243.48644641,0.00013598,2]
[394133619,1763313038247,-300.0,0.00013598,2]
[394133622,1763313038257,-364.31608722,0.00013599,2]
[394133624,1763313038269,-12218.39733934,0.00013599,2]
[394133805,1763313040421,-484.3680624,0.00013599,2]
[394133806,1763313040432,-18494.17171356,0.00013599,2]
[394133834,1763313043528,-3000.0,0.00013599,2]
[394133839,1763313046417,-255035.3733262,0.00013599,2]
[394133840,1763313046428,-4821.60298698,0.00013599,2]
[394133841,1763313046439,-3819.14115196,0.00013599,2]
[394133842,1763313046451,-3249.99999995,0.00013599,2]
[394133843,1763313046462,-3195.57931145,0.00013599,2]
[394133844,1763313046498,-2272.23679476,0.00013599,2]
[394133845,1763313046545,-53282.3121301,0.00013599,2]
[394133846,1763313046557,-2599.8764845,0.00013599,2]
[394133847,1763313046567,-680.90757339,0.00013599,2]
[394133848,1763313046707,-20805.83892582,0.00013599,2]
[394133849,1763313046719,-330.0,0.00013599,2]
[394133850,1763313046730,-14652.01132879,0.00013599,2]
[394133853,1763313154115,155.749108,0.0001764,3]
[394133854,1763313256235,42584.0,0.00018,9]
[394133855,1763313275705,4346.89,0.00018,9]
[394133887,1763313944045,-244.76270432,0.0001247,2]
[394133888,1763313944067,-2936.3881185,0.00012596,2]
[394133889,1763313944090,-242.25955406,0.00013034,2]
[394133890,1763313944129,-300.0,0.00013472,2]
[394133891,1763313944152,-258.0,0.00013472,2]
[394133892,1763313944320,-170.0,0.00013472,2]
[394133893,1763313944343,-500.0,0.00013473,2]
[394133894,1763313944366,-500.0,0.00013473,2]
[394133895,1763313944390,-501.17308663,0.00013473,2]
[394133896,1763313944413,-500.0,0.00013473,2]
[394133897,1763313944436,-500.0,0.00013473,2]
[394133898,1763313944458,-500.0,0.00013473,2]
[394133899,1763313944484,-500.0,0.00013473,2]
[394133900,1763313944507,-506.30280005,0.00013473,2]
[394133901,1763313944534,-500.0,0.00013473,2]
[394133902,1763313944557,-500.0,0.00013473,2]
[394133903,1763313944582,-506.45381358,0.00013473,2]
[394133904,1763313944604,-209.59424987,0.00013473,2]
[394133905,1763313944626,-500.0,0.00013473,2]
[394133906,1763313944648,-504.00568965,0.00013473,2]
[394133907,1763313944675,-477.0,0.00013497,2]
[394133908,1763313944699,-476.40398749,0.00013497,2]
[394133909,1763313944724,-266.57564682,0.00013497,2]
[394133910,1763313944752,-890000.0,0.00013498,2]
[394133917,1763314003129,-216.68123857,0.00013471,2]
[394133925,1763314030107,-2033.82831012,0.00013471,2]
[394133926,1763314030129,-500.0,0.00013473,2]
[394133927,1763314030150,-300.0,0.00013589,2]
[394133928,1763314030170,-1000.0,0.0001359,2]
[394133929,1763314030189,-1000.0,0.0001359,2]
[394133930,1763314030210,-1029.27582249,0.0001359,2]
[394133931,1763314030229,-151.0,0.0001359,2]
[394133932,1763314030250,-151.91855871,0.0001359,2]
[394133933,1763314030270,-19501.85016893,0.00013598,2]
[394133934,1763314030291,-4933.63224962,0.00013688,2]
[394133935,1763314030310,-925.498953,0.00013699,2]
[394133936,1763314030331,-164.3052089,0.00013778,2]
[394133937,1763314030352,-32448.0544552,0.00013788,2]
[394133938,1763314030372,-6873.5464781,0.00013788,2]
[394133939,1763314030394,-816.2594663,0.00013788,2]
[394133940,1763314030417,-600.0,0.00013971,2]
[394133941,1763314030438,-500.0,0.00014021,2]
[394133942,1763314030458,-1085.02546262,0.00014021,2]
[394133943,1763314030477,-500.0,0.00014021,2]
[394133944,1763314030496,-164.2628813,0.000142,2]
[394133945,1763314030517,-164.2237678,0.000142,2]
[394133946,1763314030539,-330.7352089,0.000142,2]
[394133947,1763314030557,-154.3526147,0.000142,2]
[394133948,1763314030576,-422.75377212,0.00014693,2]
[394133949,1763314030596,-2149.0,0.00014786,2]
[394133950,1763314030615,-629.0,0.00014786,2]
[394133951,1763314030636,-1090.88,0.00014786,2]
[394133952,1763314030655,-413.0,0.00014786,2]
[394133953,1763314030673,-414.664,0.00014786,2]
[394133954,1763314030698,-420.0,0.00014894,2]
[394133955,1763314030718,-1414.80699527,0.0001499,2]
[394133956,1763314030740,-160.0,0.00015,2]
[394133957,1763314030761,-285.86627379,0.00015034,2]
[394133958,1763314030781,-189.868035,0.00015068,2]
[394133959,1763314030802,-469.36203381,0.00015068,2]
[394133960,1763314030822,-284.71620534,0.00015221,2]
[394133961,1763314030845,-720.0,0.00015368,2]
[394133962,1763314030865,-500.0,0.00015373,2]
[394133963,1763314030886,-500.0,0.00015373,2]
[394133964,1763314030905,-500.0,0.00015373,2]
[394133965,1763314030924,-500.0,0.00015373,2]
[394133966,1763314030945,-163.74908723,0.00015463,2]
[394133967,1763314030964,-816.2594663,0.00015626,2]
[394133968,1763314030987,-333.48279124,0.00015796,2]
[394133969,1763314031007,-32448.0544552,0.00015797,2]
[394133970,1763314031028,-6873.5464781,0.00015797,2]
[394133971,1763314031048,-151.0,0.00015858,2]
[394133972,1763314031067,-500.0,0.00015858,2]
[394133973,1763314031086,-151.0,0.00015858,2]
[394133974,1763314031106,-151.0,0.00015858,2]
[394133975,1763314031128,-204.00484074,0.00015858,2]
[394133976,1763314031148,-500.0,0.00015858,2]
[394133977,1763314031168,-1000.0,0.00015921,2]
[394133978,1763314031285,-502.28859581,0.00015921,2]
[394133979,1763314031305,-273.66042124,0.00015921,2]
[394133980,1763314031326,-500.0,0.00015921,2]
[394133981,1763314031345,-24732.96376612,0.0001599,2]
[394133985,1763314041086,-328.5257626,0.000141,2]
[394133986,1763314041106,-75267.03623388,0.0001599,2]
[394133987,1763314041125,-151.0,0.00015995,2]
[394133988,1763314041145,-500.0,0.00015995,2]
[394133989,1763314041164,-153.46352001,0.00015995,2]
[394133990,1763314041183,-152.67197067,0.00015995,2]
[394133991,1763314041203,-1500.0,0.00016,2]
[394133992,1763314041223,-8627.74303843,0.00016068,2]
[394133993,1763314041242,-151.0,0.00016132,2]
[394133994,1763314041261,-500.0,0.00016132,2]
[394133995,1763314041280,-151.0,0.00016269,2]
[394133996,1763314041300,-502.62780479,0.00016269,2]
[394133997,1763314041319,-151.0,0.00016307,2]
[394133998,1763314041339,-587.0,0.00016324,2]
[394133999,1763314041359,-226.684744,0.00016406,2]
[394134000,1763314041379,-151.0,0.00016438,2]
[394134001,1763314041403,-151.0,0.00016438,2]
[394134002,1763314041423,-156.699156,0.00016438,2]
[394134003,1763314041443,-151.000058,0.00016438,2]
[394134004,1763314041463,-151.0,0.00016438,2]
[394134005,1763314041482,-151.0,0.00016438,2]
[394134006,1763314041503,-151.0,0.00016438,2]
[394134007,1763314041522,-151.0,0.00016438,2]
[394134008,1763314041542,-553.485685,0.00016438,2]
[394134009,1763314041562,-553.485685,0.00016438,2]
[394134010,1763314041581,-553.485685,0.00016438,2]
[394134011,1763314041601,-553.485685,0.00016438,2]
[394134012,1763314041621,-252.0274,0.00016438,2]
[394134013,1763314041641,-252.0274,0.00016438,2]
[394134014,1763314041661,-252.0274,0.00016438,2]
[394134015,1763314041680,-252.0274,0.00016438,2]
[394134016,1763314041704,-500.0,0.00016438,2]
[394134017,1763314041724,-500.0,0.00016438,2]
[394134018,1763314041744,-500.0,0.00016438,2]
[394134019,1763314041765,-500.0,0.00016438,2]
[394134020,1763314041792,-500.0,0.00016438,2]
[394134021,1763314041813,-622.78390414,0.00016438,2]
[394134022,1763314041834,-500.0,0.00016438,2]
[394134023,1763314041855,-500.0,0.00016438,2]
[394134024,1763314041874,-500.0,0.00016438,2]
[394134025,1763314041896,-500.0,0.00016438,2]
[394134026,1763314041918,-500.0,0.00016438,2]
[394134027,1763314041939,-500.0,0.00016438,2]
[394134028,1763314041961,-500.0,0.00016438,2]
[394134029,1763314041981,-587.89457374,0.00016438,2]
[394134030,1763314042002,-500.0,0.00016438,2]
[394134031,1763314042023,-500.0,0.00016438,2]
[394134032,1763314042043,-500.0,0.00016438,2]
[394134033,1763314042151,-500.0,0.00016438,2]
[394134034,1763314042173,-500.0,0.00016438,2]
[394134035,1763314042194,-500.0,0.00016438,2]
[394134036,1763314042215,-500.0,0.00016438,2]
[394134037,1763314042237,-500.0,0.00016438,2]
[394134038,1763314042258,-500.0,0.00016438,2]
[394134039,1763314042280,-500.0,0.00016438,2]
[394134040,1763314042300,-500.0,0.00016438,2]
[394134041,1763314042321,-500.0,0.00016438,2]
[394134042,1763314042340,-293.20737699,0.00016438,2]
[394134043,1763314042360,-500.0,0.00016438,2]
[394134044,1763314042380,-500.0,0.00016438,2]
[394134045,1763314042402,-500.0,0.00016438,2]
[394134046,1763314042423,-500.0,0.00016438,2]
[394134047,1763314042443,-500.0,0.00016438,2]
[394134048,1763314042463,-500.0,0.00016438,2]
[394134049,1763314042484,-500.0,0.00016438,2]
[394134050,1763314042504,-500.0,0.00016438,2]
[394134051,1763314042524,-500.0,0.00016438,2]
[394134052,1763314042544,-500.0,0.00016438,2]
[394134053,1763314042563,-500.0,0.00016438,2]
[394134054,1763314042583,-500.0,0.00016438,2]
[394134055,1763314042603,-638.66060963,0.00016438,2]
[394134057,1763314042623,-500.0,0.00016438,2]
[394134058,1763314042645,-500.0,0.00016438,2]
[394134059,1763314042666,-500.0,0.00016438,2]
[394134060,1763314042690,-500.0,0.00016438,2]
[394134061,1763314042711,-500.0,0.00016438,2]
[394134062,1763314042733,-500.0,0.00016438,2]
[394134063,1763314042753,-500.0,0.00016438,2]
[394134064,1763314042777,-500.0,0.00016438,2]
[394134065,1763314042798,-500.0,0.00016438,2]
[394134066,1763314042819,-500.0,0.00016438,2]
[394134067,1763314042841,-500.0,0.00016438,2]
[394134068,1763314042863,-500.0,0.00016438,2]
[394134069,1763314042885,-500.0,0.00016438,2]
[394134070,1763314042906,-500.0,0.00016438,2]
[394134071,1763314042931,-500.0,0.00016438,2]
[394134072,1763314042953,-500.0,0.00016438,2]
[394134073,1763314042975,-500.0,0.00016438,2]
[394134074,1763314042995,-500.0,0.00016438,2]
[394134075,1763314043016,-500.0,0.00016438,2]
[394134076,1763314043038,-500.0,0.00016438,2]
[394134077,1763314043058,-500.0,0.00016438,2]
[394134078,1763314043080,-500.0,0.00016438,2]
[394134079,1763314043101,-500.0,0.00016438,2]
[394134080,1763314043123,-500.0,0.00016438,2]
[394134081,1763314043147,-500.0,0.00016438,2]
[394134082,1763314043169,-500.0,0.00016438,2]
[394134083,1763314043192,-500.0,0.00016438,2]
[394134084,1763314043214,-500.0,0.00016438,2]
[394134085,1763314043234,-500.0,0.00016438,2]
[394134086,1763314043254,-500.0,0.00016438,2]
[394134087,1763314043275,-500.0,0.00016438,2]
[394134088,1763314043296,-500.0,0.00016438,2]
[394134089,1763314043317,-500.0,0.00016438,2]
[394134090,1763314043339,-500.0,0.00016438,2]
[394134091,1763314043360,-693.82410121,0.00016438,2]
[394134092,1763314043381,-693.82410121,0.00016438,2]
[394134093,1763314043403,-500.0,0.00016438,2]
[394134094,1763314043426,-500.0,0.00016438,2]
[394134095,1763314043448,-693.82410121,0.00016438,2]
[394134096,1763314043469,-500.0,0.00016438,2]
[394134097,1763314043491,-693.82410121,0.00016438,2]
[394134098,1763314043513,-500.0,0.00016438,2]
[394134099,1763314043534,-500.0,0.00016438,2]
[394134100,1763314043556,-693.82410121,0.00016438,2]
[394134101,1763314043577,-500.0,0.00016438,2]
[394134102,1763314043598,-693.82410121,0.00016438,2]
[394134103,1763314043622,-500.0,0.00016438,2]
[394134104,1763314043645,-693.82410121,0.00016438,2]
[394134105,1763314043667,-693.82410121,0.00016438,2]
[394134106,1763314043690,-500.0,0.00016438,2]
[394134107,1763314043719,-500.0,0.00016438,2]
[394134108,1763314043741,-693.82410121,0.00016438,2]
[394134109,1763314043764,-500.0,0.00016438,2]
[394134110,1763314043787,-693.82410121,0.00016438,2]
[394134111,1763314043809,-500.0,0.00016438,2]
[394134112,1763314043833,-693.82410121,0.00016438,2]
[394134113,1763314043854,-500.0,0.00016438,2]
[394134114,1763314043877,-693.82410121,0.00016438,2]
[394134115,1763314043902,-500.0,0.00016438,2]
[394134116,1763314043926,-693.82410121,0.00016438,2]
[394134117,1763314043948,-500.0,0.00016438,2]
[394134118,1763314043972,-693.82410121,0.00016438,2]
[394134119,1763314043995,-500.0,0.00016438,2]
[394134120,1763314044101,-693.82410121,0.00016438,2]
[394134121,1763314044123,-693.82410121,0.00016438,2]
[394134122,1763314044146,-500.0,0.00016438,2]
[394134124,1763314044168,-693.82410121,0.00016438,2]
[394134125,1763314044191,-500.0,0.00016438,2]
[394134126,1763314044214,-693.82410121,0.00016438,2]
[394134127,1763314044235,-500.0,0.00016438,2]
[394134128,1763314044256,-693.82410121,0.00016438,2]
[394134129,1763314044277,-500.0,0.00016438,2]
[394134130,1763314044299,-693.82410121,0.00016438,2]
[394134131,1763314044320,-500.0,0.00016438,2]
[394134132,1763314044343,-693.82410121,0.00016438,2]
[394134133,1763314044363,-500.0,0.00016438,2]
[394134134,1763314044383,-693.82410121,0.00016438,2]
[394134135,1763314044405,-693.82410121,0.00016438,2]
[394134136,1763314044426,-500.0,0.00016438,2]
[394134137,1763314044447,-693.82410121,0.00016438,2]
[394134138,1763314044467,-500.0,0.00016438,2]
[394134139,1763314044488,-693.82410121,0.00016438,2]
[394134140,1763314044509,-693.82410121,0.00016438,2]
[394134141,1763314044529,-500.0,0.00016438,2]
[394134142,1763314044549,-500.0,0.00016438,2]
[394134143,1763314044569,-693.82410121,0.00016438,2]
[394134144,1763314044589,-449.24526411,0.00016438,2]
[394134145,1763314044610,-693.82410121,0.00016438,2]
[394134146,1763314044632,-500.0,0.00016438,2]
[394134147,1763314044654,-693.82410121,0.00016438,2]
[394134148,1763314044675,-500.0,0.00016438,2]
[394134149,1763314044698,-500.0,0.00016438,2]
[394134150,1763314044719,-693.82410121,0.00016438,2]
[394134151,1763314044742,-500.0,0.00016438,2]
[394134152,1763314044764,-693.82410121,0.00016438,2]
[394134153,1763314044784,-500.0,0.00016438,2]
[394134154,1763314044807,-693.82410121,0.00016438,2]
[394134155,1763314044827,-500.0,0.00016438,2]
[394134156,1763314044848,-693.82410121,0.00016438,2]
[394134157,1763314044869,-693.82410121,0.00016438,2]
[394134158,1763314044892,-500.0,0.00016438,2]
[394134159,1763314044914,-693.82410121,0.00016438,2]
[394134160,1763314044937,-500.0,0.00016438,2]
[394134161,1763314044957,-500.0,0.00016438,2]
[394134162,1763314044979,-693.82410121,0.00016438,2]
[394134163,1763314044999,-500.0,0.00016438,2]
[394134164,1763314045020,-693.82410121,0.00016438,2]
[394134165,1763314045041,-693.82410121,0.00016438,2]
[394134166,1763314045061,-693.82410121,0.00016438,2]
[394134167,1763314045082,-693.82410121,0.00016438,2]
[394134168,1763314045104,-693.82410123,0.00016438,2]
[394134169,1763314045125,-693.82410123,0.00016438,2]
[394134170,1763314045147,-693.82410123,0.00016438,2]
[394134171,1763314045168,-693.82410123,0.00016438,2]
[394134172,1763314045189,-693.82410123,0.00016438,2]
[394134173,1763314045210,-693.82410123,0.00016438,2]
[394134174,1763314045232,-693.82410123,0.00016438,2]
[394134175,1763314045252,-693.82410123,0.00016438,2]
[394134176,1763314045278,-500.0,0.00016438,2]
[394134177,1763314045301,-693.82410123,0.00016438,2]
[394134178,1763314045322,-500.0,0.00016438,2]
[394134179,1763314045343,-693.82410123,0.00016438,2]
[394134180,1763314045363,-500.0,0.00016438,2]
[394134181,1763314045384,-500.0,0.00016438,2]
[394134182,1763314045406,-250.0,0.00016438,2]
[394134183,1763314045426,-151.0,0.00016438,2]
[394134184,1763314045447,-151.0,0.00016438,2]
[394134185,1763314045475,-151.0,0.00016438,2]
[394134186,1763314045496,-151.0,0.00016438,2]
[394134187,1763314045522,-151.0,0.00016438,2]
[394134188,1763314045543,-161.92717,0.00016438,2]
[394134189,1763314045564,-151.0,0.00016438,2]
[394134190,1763314045586,-151.0,0.00016438,2]
[394134191,1763314045606,-151.0,0.00016438,2]
[394134192,1763314045627,-151.0,0.00016438,2]
[394134193,1763314045650,-151.0,0.00016438,2]
[394134194,1763314045672,-158.082613,0.00016438,2]
[394134195,1763314045695,-151.0,0.00016438,2]
[394134196,1763314045717,-151.0,0.00016438,2]
[394134197,1763314045738,-156.743928,0.00016438,2]
[394134198,1763314045758,-151.0,0.00016438,2]
[394134199,1763314045777,-151.0,0.00016438,2]
[394134200,1763314045798,-151.0,0.00016438,2]
[394134201,1763314045819,-151.0,0.00016438,2]
[394134202,1763314045838,-151.0,0.00016438,2]
[394134203,1763314045937,-151.0,0.00016438,2]
[394134204,1763314045957,-151.0,0.00016438,2]
[394134205,1763314045978,-151.0,0.00016438,2]
[394134206,1763314045998,-151.0,0.00016438,2]
[394134207,1763314046018,-156.928429,0.00016438,2]
[394134208,1763314046038,-151.0,0.00016438,2]
[394134209,1763314046058,-151.0,0.00016438,2]
[394134210,1763314046079,-151.0,0.00016438,2]
[394134211,1763314046099,-151.0,0.00016438,2]
[394134212,1763314046119,-151.0,0.00016438,2]
[394134213,1763314046139,-151.0,0.00016438,2]
[394134214,1763314046159,-151.0,0.00016438,2]
[394134215,1763314046179,-151.0,0.00016438,2]
[394134216,1763314046199,-151.0,0.00016438,2]
[394134217,1763314046219,-389.432928,0.00016438,2]
[394134218,1763314046241,-154.518584,0.00016438,2]
[394134219,1763314046261,-389.432928,0.00016438,2]
[394134220,1763314046282,-389.432928,0.00016438,2]
[394134221,1763314046302,-389.432928,0.00016438,2]
[394134222,1763314046322,-151.0,0.00016438,2]
[394134223,1763314046344,-151.0,0.00016438,2]
[394134224,1763314046365,-151.0,0.00016438,2]
[394134225,1763314046385,-235.691669,0.00016438,2]
[394134226,1763314046406,-235.691669,0.00016438,2]
[394134227,1763314046427,-235.691669,0.00016438,2]
[394134228,1763314046448,-235.691669,0.00016438,2]
[394134229,1763314046468,-151.0,0.00016438,2]
[394134230,1763314046489,-151.0,0.00016438,2]
[394134231,1763314046508,-151.0,0.00016438,2]
[394134232,1763314046528,-151.0,0.00016438,2]
[394134233,1763314046549,-151.0,0.00016438,2]
[394134234,1763314046569,-224.124191,0.00016438,2]
[394134235,1763314046588,-155.595078,0.00016438,2]
[394134236,1763314046609,-601.905903,0.00016438,2]
[394134237,1763314046629,-601.905903,0.00016438,2]
[394134238,1763314046652,-601.905903,0.00016438,2]
[394134239,1763314046673,-152.781541,0.00016438,2]
[394134240,1763314046696,-601.905903,0.00016438,2]
[394134241,1763314046717,-152.781541,0.00016438,2]
[394134242,1763314046739,-152.781541,0.00016438,2]
[394134243,1763314046760,-152.781541,0.00016438,2]
[394134244,1763314046781,-225.324215,0.00016438,2]
[394134245,1763314046801,-225.324215,0.00016438,2]
[394134246,1763314046821,-225.324215,0.00016438,2]
[394134247,1763314046842,-225.324215,0.00016438,2]
[394134248,1763314046862,-151.0,0.00016438,2]
[394134249,1763314046883,-151.0,0.00016438,2]
[394134250,1763314046906,-151.0,0.00016438,2]
[394134251,1763314046927,-151.0,0.00016438,2]
[394134252,1763314046951,-151.0,0.00016438,2]
[394134253,1763314046973,-151.0,0.00016438,2]
[394134254,1763314046995,-151.0,0.00016438,2]
[394134255,1763314047015,-151.0,0.00016438,2]
[394134256,1763314047036,-151.0,0.00016438,2]
[394134257,1763314047057,-151.0,0.00016438,2]
[394134258,1763314047077,-151.0,0.00016438,2]
[394134259,1763314047099,-151.0,0.00016438,2]
[394134260,1763314047125,-151.0,0.00016438,2]
[394134261,1763314047149,-151.0,0.00016438,2]
[394134262,1763314047169,-151.0,0.00016438,2]
[394134263,1763314047189,-151.0,0.00016438,2]
[394134264,1763314047209,-205.682431,0.00016438,2]
[394134265,1763314047228,-151.0,0.00016438,2]
[394134266,1763314047249,-151.0,0.00016438,2]
[394134267,1763314047270,-151.0,0.00016438,2]
[394134268,1763314047289,-292.339314,0.00016438,2]
[394134269,1763314047308,-159.073921,0.00016438,2]
[394134270,1763314047328,-151.0,0.00016438,2]
[394134271,1763314047348,-151.0,0.00016438,2]
[394134272,1763314047369,-154.721164,0.00016438,2]
[394134273,1763314047389,-151.0,0.00016438,2]
[394134274,1763314047411,-153.806504,0.00016438,2]
[394134275,1763314047433,-151.0,0.00016438,2]
[394134276,1763314047454,-151.0,0.00016438,2]
[394134277,1763314047481,-151.0,0.00016438,2]
[394134278,1763314047503,-268.210478,0.00016438,2]
[394134279,1763314047524,-151.0,0.00016438,2]
[394134280,1763314047547,-151.0,0.00016438,2]
[394134281,1763314047568,-151.0,0.00016438,2]
[394134283,1763314047666,-151.0,0.00016438,2]
[394134284,1763314047694,-151.0,0.00016438,2]
[394134285,1763314047717,-216.945211,0.00016438,2]
[394134286,1763314047738,-395.579803,0.00016438,2]
[394134287,1763314047760,-395.579803,0.00016438,2]
[394134288,1763314047781,-395.579803,0.00016438,2]
[394134289,1763314047802,-395.579803,0.00016438,2]
[394134290,1763314047824,-151.0,0.00016438,2]
[394134291,1763314047846,-500.5637,0.00016438,2]
[394134292,1763314047869,-500.5637,0.00016438,2]
[394134293,1763314047891,-500.5637,0.00016438,2]
[394134294,1763314047914,-500.5637,0.00016438,2]
[394134295,1763314047935,-151.0,0.00016438,2]
[394134296,1763314047956,-175.744712,0.00016438,2]
[394134297,1763314047977,-151.0,0.00016438,2]
[394134298,1763314047996,-151.0,0.00016438,2]
[394134299,1763314048017,-151.0,0.00016438,2]
[394134300,1763314048036,-151.0,0.00016438,2]
[394134301,1763314048056,-151.0,0.00016438,2]
[394134302,1763314048077,-151.0,0.00016438,2]
[394134303,1763314048096,-153.375763,0.00016438,2]
[394134304,1763314048117,-278.607975,0.00016438,2]
[394134305,1763314048137,-151.0,0.00016438,2]
[394134306,1763314048159,-278.607975,0.00016438,2]
[394134307,1763314048179,-258.982042,0.00016438,2]
[394134308,1763314048199,-151.0,0.00016438,2]
[394134309,1763314048219,-278.607975,0.00016438,2]